Cogmind - Beta 17 @@@ ROGUE MODE // 2026.06.27 @ 21:34:17 Player: THN-L0C Result: Self-destructed Performance ------------- Evolutions (3) 1500 Regions Visited (4) 800 Robots Destroyed (47) 235 Value Destroyed (1252) 1252 Prototype IDs (5) 100 Alien Tech Used (0) 0 Bonus (0) 0 TOTAL SCORE: 3887 Bonus ------- None Cogmind --------- Core Integrity 625/700 Matter 280/300 Energy 240/240 System Corruption 0% Temperature Cool (0) Movement Core (200) Ox3 Location -7/Factory Parts ------- > --- POWER (2) -------- Nuclear Core > --- PROPULSION (4) --- Titanium Leg > --- UTILITY (5) ------ Large Storage Unit Advanced Weight Redist. System Actuator Array > --- WEAPON (2) ------- Heavy Particle Gun Katana > --- INVENTORY (15) --- Light Nuclear Core Titanium Leg Titanium Leg Titanium Leg Improved Cesium-ion Thruster Improved Heat Sink Melee Analysis Suite Core Analyzer Improved Power Shielding Heavy Particle Gun Heavy Particle Gun Ion Cannon Ion Cannon Improved Datajack Katana Peak State ------------ > --- POWER ------------ Light Deuterium Engine Nuclear Core > --- PROPULSION ------- Airjet Airjet Airjet Improved Cesium-ion Thruster > --- UTILITY ---------- Large Storage Unit Advanced Weight Redist. System Improved Sensor Array Actuator Array Propulsion Shielding > --- WEAPON ----------- Heavy Particle Gun Katana > --- INVENTORY -------- Light Nuclear Core Titanium Leg Titanium Leg Titanium Leg Improved Heat Sink Melee Analysis Suite Core Analyzer Improved Power Shielding Heavy Particle Gun Heavy Particle Gun Ion Cannon Ion Cannon Improved Datajack Katana [Rating: 42] Favorites ----------- Power Ion Engine Engine Ion Engine Power Core Light Nuclear Core Propulsion Light Treads Treads Light Treads Leg Titanium Leg Wheel Compact Wheel Hover Unit Airjet Flight Unit Improved VTOL Module Utility Large Storage Unit Device Seismic Detector Storage Large Storage Unit Processor Transport Network Coupler Protection Propulsion Shielding Weapon Barrage Gun Energy Gun Heavy Particle Gun Ballistic Gun Barrage Gun Ballistic Cannon Battle Cannon Launcher Grenade Launcher Special Weapon Mining Laser Impact Weapon Heavy Flail Slashing Weapon Katana Special Melee Weapon Datajack Build | -11 -10 -10 -8 -7 ------- Run | Yrd Mat Sub Mat Fac Slots Evolved 6 | . . . 4 2 Power 1 | . . . . 1 Propulsion 2 | . . . 2 . Utility 3 | . . . 2 1 Weapon . | . . . . . Parts Attached 63 | 6 4 13 37 3 Power 8 | 1 . 2 4 1 Engine 6 | 1 . 2 2 1 Core 2 | . . . 2 . Reactor . | . . . . . Propulsion 19 | 2 . 3 13 1 Treads 4 | 1 . 1 2 . Leg 3 | . . . 3 . Wheel 3 | 1 . 2 . . Hover 7 | . . . 7 . Flight 2 | . . . 1 1 Utility 17 | 1 2 3 10 1 Device 8 | . 1 1 5 1 Storage 4 | 1 1 2 . . Processor 3 | . . . 3 . Hackware . | . . . . . Protection 2 | . . . 2 . Artifact . | . . . . . Weapon 19 | 2 2 5 10 . Energy Gun 7 | . . . 7 . Energy Cannon . | . . . . . Ballistic Gun 5 | 2 1 2 . . Ballistic Cannon 1 | . . 1 . . Launcher 1 | . . 1 . . Special Weapon 1 | . 1 . . . Impact Weapon 1 | . . . 1 . Slashing Weapon 1 | . . . 1 . Piercing Weapon . | . . . . . Special Melee Weapon 2 | . . 1 1 . Unidentified Prototypes 5 | . . . 4 1 Parts Lost 28 | . . 7 15 6 Power 4 | . . 1 2 1 Propulsion 12 | . . 2 7 3 Utility 7 | . . 1 4 2 Weapon 5 | . . 3 2 . Highest Loss Streak 7 | . . 4 7 6 To Critical Strikes . | . . . . . Average Backups 12 | 2 7 12 13 14 Power . | . . . 1 1 Propulsion 1 | 1 1 1 2 3 Utility 3 | . 3 4 2 3 Weapon 4 | . 2 4 5 5 Tool/Special . | . . . . . Unused Backups 29 | . . 3 14 12 Power 3 | . . 1 2 . Propulsion 5 | . . . 2 3 Utility 10 | . . 2 4 4 Weapon 11 | . . . 6 5 Tool/Special . | . . . . . Average Slot Usage (%) 97 | . 94 99 94 98 Engine 11 | . 14 13 4 7 Core 1 | . . . 4 7 Treads 12 | . 14 14 6 . Leg 1 | . . . 4 7 Wheel 11 | . 14 13 4 . Hover 3 | . . . 15 22 Device 12 | . 8 12 16 22 Storage 14 | . 14 15 11 7 Energy Gun 2 | . . . 11 7 Ballistic Gun 15 | . 25 20 . . Ballistic Cannon 1 | . . . 2 . Special Weapon 4 | . 2 5 . . Peak Build Rating 42 | 6 8 16 36 42 Average Rating 15 | 4 7 11 30 39 On Entrance 11 | . 6 8 11 34 Avg Prop Armor Cover (%) 11 | 13 12 10 14 7 Naked Turns . | . . . . . Heaviest Build 49 | 13 20 34 49 44 Greatest Support 45 | 16 16 40 45 36 Greatest Overweight (x) 2 | . 1 2 2 1 Average Overweight (x) . | . . . . 1 Largest Inventory Capacity 15 | 8 10 15 15 15 Average Capacity 14 | 7 9 14 15 15 Most Carried 15 | 4 9 15 15 15 Average Carried 13 | 2 7 13 13 14 Final Capacity 15 | 8 10 15 15 15 Final Carried 15 | 4 9 14 15 15 Class Distribution -------------------- 94% | Mutant 5% | Scavenger-Mutant Dominant Class ---------------- Mutant | -10/Materials Mutant | -10/Subcaves Mutant | -8/Materials Mutant | -7/Factory Resources | -11 -10 -10 -8 -7 ----------- Run | Yrd Mat Sub Mat Fac Matter Collected 1676 | 237 69 729 641 . Remotely . | . . . . . Salvage Created 1745 | 11 69 388 1277 . Parts 100 | 5 5 27 63 . Haulers Intercepted 4 | . 1 . 3 . Recyclers Shooed 3 | . 1 . 2 . Parts Field Recycled . | . . . . . Retrieved Matter . | . . . . . Parts Self-Destructed 12 | . . 12 . . Prevented . | . . . . . Parts Restored . | . . . . . Kills | -11 -10 -10 -8 -7 ------- Run | Yrd Mat Sub Mat Fac Combat Hostiles Destroyed 39 | . . 12 27 . Melee 4 | . . . 4 . Guns 23 | . . 5 18 . Cannons 3 | . . 1 2 . AOE 6 | . . 6 . . Classes Destroyed 9 | 1 2 2 4 . Worker 2 | . 1 . 1 . Tunneler 1 | 1 . . . . Hauler 4 | . 1 . 3 . Recycler 1 | . . . 1 . Swarmer 15 | . . 6 9 . Grunt 12 | . . . 12 . Duelist 1 | . . . 1 . Sentry 5 | . . . 5 . Subdweller 6 | . . 6 . . Best Kill Streak 6 | 1 1 3 6 . Combat Bots Only 6 | . . 3 6 . Max Kills in Single Turn 3 | 1 1 3 1 . Gunslinging . | . . . . . Exploded 3 | . . 3 . . Melee 1 | . . . 1 . Uniques/NPCs Destroyed . | . . . . . Combat | -11 -10 -10 -8 -7 -------- Run | Yrd Mat Sub Mat Fac Hostile Shots Fired 294 | . . 67 205 22 Missed 79 | . . 16 61 2 Hits 215 | . . 51 144 20 Melee 8 | . . . 2 6 Projectile 207 | . . 51 142 14 Critical Strikes 4 | . . . 4 . Damage Taken 3480 | . . 989 2063 428 Core 665 | . . 242 348 75 Absorbed by Shields . | . . . . . Redirected to Shielding 58 | . . . 17 41 Core Remaining (%) 46 | 100 . 3 36 . Volleys Fired 175 | 1 13 103 58 . Largest 2 | 2 2 2 2 . Hottest 128 | 40 100 128 115 . Shots Fired 286 | 2 22 151 111 . Gun 209 | 2 19 94 94 . Cannon 20 | . . 3 17 . Launcher 6 | . . 6 . . Special 51 | . 3 48 . . Kinetic 135 | 2 19 97 17 . Thermal 145 | . 3 48 94 . Explosive 6 | . . 6 . . Electromagnetic . | . . . . . Robot Hit Streak 51 | 1 3 51 19 . Robot Miss Streak 3 | . 3 3 3 . Penetration Max . | . . . . . Secondary Targets 2 | . . . 2 . Max Gunslinging Chain 1 | . . . 1 . Shots Hit Robots 200 | 1 9 92 95 3 Core Hits 76 | 1 3 31 41 . Critical Kills . | . . . . . Critical Parts Destroyed 1 | . . . 1 . Critical Strikes 6 | . . . 6 . Burn 4 | . . . 4 . Smash 1 | . . . 1 . Sever 1 | . . . 1 . Melee Attacks 39 | . . 3 26 10 Impact 18 | . . . 18 . Slashing 18 | . . . 8 10 Piercing . | . . . . . Sneak Attacks 3 | . . . 3 . Combat Hostiles . | . . . . . Follow-up Attacks . | . . . . . Damage Inflicted 3927 | 12 136 1551 2162 66 Guns 2602 | 12 136 1145 1309 . Cannons 226 | . . 53 173 . Explosions 329 | . . 329 . . Melee 746 | . . . 680 66 Ramming . | . . . . . Kinetic 1519 | 12 136 1198 173 . Thermal 1333 | . . 24 1309 . Explosive 329 | . . 329 . . Electromagnetic . | . . . . . Impact 421 | . . . 421 . Slashing 325 | . . . 259 66 Piercing . | . . . . . Highest Corruption 4 | . . . 4 . Average Corruption 3 | . . . 3 . Corruption Purged . | . . . . . Corruption Blocked . | . . . . . Effects 19 | . . . 19 . Message Errors 4 | . . . 4 . Matter Fused 5 | . . . 5 . Heat Flow Errors 4 | . . . 4 . Energy Discharges 1 | . . . 1 . Data Loss (minor) 3 | . . . 3 . Data Loss (major) 1 | . . . 1 . Misfires 1 | . . . 1 . Overload Shots . | . . . . . Overflow Damage 213 | . . 8 205 . Projectiles 14 | . . . 14 . Explosions 8 | . . 8 . . Melee 191 | . . . 191 . Knockbacks 3 | . . . 3 . Impact . | . . . . . Kinetic 3 | . . . 3 . Secondary . | . . . . . Self-Inflicted Damage 64 | . . 64 . . Shots 2 | . . 2 . . Rammed . | . . . . . Targets Rammed . | . . . . . Kicked . | . . . . . Crushed . | . . . . . Highest Temperature 241 | . 60 . 241 . Average Temperature 78 | . 32 . 82 . Received Heat Transfer 1194 | . . 240 891 63 Siege Activations . | . . . . . Martial Activations . | . . . . . Shielding Activations . | . . . . . Robots Disrupted . | . . . . . Combat Hostiles . | . . . . . Robots Corrupted 2 | . . . 2 . Combat Hostiles 2 | . . . 2 . Parts Fried 3 | . . . 3 . Impact Corruptions 4 | . . . 4 . Robots Melted 1 | . . . 1 . Combat Hostiles 1 | . . . 1 . Parts Melted 9 | . . 1 8 . Heat Transferred 3084 | . . 50 3034 . Parts Sabotaged . | . . . . . Parts Stolen . | . . . . . Parts Stripped . | . . . . . Power Chain Reactions . | . . . . . Alert | -11 -10 -10 -8 -7 ------- Run | Yrd Mat Sub Mat Fac Maximum Alert Level 1 | . . . 1 . Low Security (%) 77 | 100 100 . 65 100 Level 1 22 | . . . 34 . Level 2 . | . . . . . Level 3 . | . . . . . Level 4 . | . . . . . Level 5 . | . . . . . High Security . | . . . . . Max Security . | . . . . . Peak Influence 274 | 5 6 . 274 105 Initial 105 | . . . 27 105 Average 102 | . . . 150 66 Influence Increases 1055 | 5 24 190 833 3 Destroy 0b10 Robot/C 660 | . . 120 540 . Destroy 0b10 Robot/NC 40 | 5 10 . 25 . Destroy Leader 138 | . 2 10 126 . Trap Triggered on 0b10 10 | . . . 10 . Successful Hack 23 | . 10 . 13 . Destroy Structure 19 | . 2 . 14 3 Partial Spotted 45 | . . . 45 . Lose Combat Pursuer 120 | . . 60 60 . Influence Decreases 1055 | 5 24 136 654 236 Entered New Map 155 | . . . 27 128 Time Decay 652 | 5 24 66 477 80 Lost Part 248 | . . 70 150 28 Squads Dispatched 6 | . 2 . 4 . Investigation 3 | . 1 . 2 . Extermination . | . . . . . Reinforcement 3 | . 1 . 2 . Assault . | . . . . . Garrison . | . . . . . Intercept . | . . . . . Searches Triggered . | . . . . . Construction Impeded . | . . . . . Haulers Reinforced . | . . . . . Active Scanning Responses . | . . . . . Cargo Convoy Interrupts . | . . . . . Stealth | -11 -10 -10 -8 -7 --------- Run | Yrd Mat Sub Mat Fac Distress Signals 2 | . . . 2 . Communications Jammed . | . . . . . Distress Signals . | . . . . . Times Spotted 58 | . 5 13 37 3 Peak Tracking Total 6 | . 2 5 6 3 Tactical Retreats 4 | . . 1 3 . Traps | -11 -10 -10 -8 -7 ------- Run | Yrd Mat Sub Mat Fac Traps Triggered 3 | . 1 . 1 1 Indirectly . | . . . . . Trap Hack Attempts 2 | . . . 2 . Triggered . | . . . . . Disarmed . | . . . . . Reprogrammed 1 | . . . 1 . Reused 1 | . . . 1 . Traps Extracted . | . . . . . Installed . | . . . . . Triggered 1 | . . . 1 . Machines | -11 -10 -10 -8 -7 ---------- Run | Yrd Mat Sub Mat Fac Machines Disabled 3 | . . 3 . . Max in Single Turn 3 | . . 3 . . Garrison Access 1 | . . . 1 . Machines Repaired . | . . . . . Machines Dismantled . | . . . . . Machines Sabotaged . | . . . . . Overloaded Fab Kills . | . . . . . Hacking | -11 -10 -10 -8 -7 --------- Run | Yrd Mat Sub Mat Fac Machines Accessed 15 | . 3 1 10 1 Terminals 9 | . 3 . 5 1 Fabricators . | . . . . . Repair Stations . | . . . . . Recycling Units 2 | . . . 2 . Scanalyzers 2 | . . . 2 . Garrison Access 1 | . . . 1 . Total Hacks 43 | . 12 5 25 1 Successful 23 | . 6 5 12 . Failed 18 | . 5 . 12 1 Catastrophic 4 | . 2 . 1 1 Database Lockouts 2 | . 1 . 1 . Manual 21 | . 11 . 9 1 Terminals 27 | . 12 . 14 1 Fabricators . | . . . . . Repair Stations . | . . . . . Recycling Units 3 | . . . 3 . Scanalyzers 7 | . . . 7 . Garrison Access 1 | . . . 1 . Terminal Hacks 13 | . 4 5 4 . Record 6 | . . 5 1 . Robot Analysis 1 | . 1 . . . Branch Access Points 1 | . . . 1 . Emergency Access Points 1 | . . . 1 . Terminal Index 1 | . 1 . . . Recall Reinforcements 1 | . 1 . . . Hauler Manifests 1 | . . . 1 . Zone Layout 1 | . 1 . . . Fabricator Hacks . | . . . . . Repair Station Hacks . | . . . . . Recycling Unit Hacks 2 | . . . 2 . Report Inventory 2 | . . . 2 . Scanalyzer 5 | . . . 5 . Insert Component 2 | . . . 2 . Analyze 2 | . . . 2 . Retrieve Study 1 | . . . 1 . Garrison Access Hacks 1 | . . . 1 . Seal Access 1 | . . . 1 . Unauthorized Hacks 2 | . 2 . . . Terminals 2 | . 2 . . . Botnet 2 | . 2 . . . Fabricators . | . . . . . Repair Stations . | . . . . . Recycling Units . | . . . . . Scanalyzers . | . . . . . Garrison Access . | . . . . . Data Cores Recovered . | . . . . . Used . | . . . . . Hacking Detections 10 | . 3 . 6 1 Full Trace Events 2 | . 1 . 1 . Feedback Events . | . . . . . Feedback Blocked . | . . . . . Robot Schematics Acquired . | . . . . . Robots Built . | . . . . . Authchips . | . . . . . Time . | . . . . . Total Robot Build Rating . | . . . . . Part Schematics Acquired 2 | . . . 2 . Parts Built . | . . . . . Authchips . | . . . . . Time . | . . . . . Total Part Build Rating . | . . . . . Part Studies Acquired 1 | . . . 1 . Parts Repaired . | . . . . . Time . | . . . . . Parts Recycled . | . . . . . Recycled Matter . | . . . . . Retrieved Matter . | . . . . . Retrieved Components . | . . . . . Parts Scanalyzed 2 | . . . 2 . Part Schematics Acquired 2 | . . . 2 . Parts Damaged . | . . . . . Bothacking | -11 -10 -10 -8 -7 ------------ Run | Yrd Mat Sub Mat Fac Used RIF Installer . | . . . . . Robots Hacked . | . . . . . Non-combat . | . . . . . Combat . | . . . . . Robot Hacks Applied . | . . . . . Relay Couplers Released . | . . . . . Fabnet Peak Effective % . | . . . . . Robots Rewired . | . . . . . Allies Hacked . | . . . . . Hacks Repelled . | . . . . . Allies | -11 -10 -10 -8 -7 -------- Run | Yrd Mat Sub Mat Fac Total Allies . | . . . . . Largest Group . | . . . . . Highest-Rated Group . | . . . . . Highest-Rated Ally . | . . . . . Total Orders . | . . . . . Ally Attacks . | . . . . . Total Damage . | . . . . . Kills . | . . . . . Allies Corrupted . | . . . . . Allies Melted . | . . . . . Intel | -11 -10 -10 -8 -7 ------- Run | Yrd Mat Sub Mat Fac Active Infowar (turns) 4968 | . 286 3605 920 157 Sensors 688 | . . . 531 157 Terrain 1810 | . . 1663 147 . Seismic 2228 | . 286 1942 . . T.N.C. 255 | . . . 255 . Machine Analysis 150 | . . . 150 . Robot Analysis Total 1 | . 1 . . . Derelict Logs Recovered . | . . . . . Drone Launches . | . . . . . Drone Recoveries . | . . . . . Exploration | -11 -10 -10 -8 -7 ------------- Run | Yrd Mat Sub Mat Fac Turns Passed 6137 | 70 474 4146 1278 169 Spaces Moved 2980 | 52 242 1530 1044 112 Core 1 | 1 . . . . Treads 439 | . . 439 . . Legs . | . . . . . Wheels 1738 | 51 242 1091 354 . Hover 802 | . . . 690 112 Flight . | . . . . . Fastest Speed 48 | 50 100 115 48 122 Average Speed 117 | 99 112 146 77 122 Slowest Speed 240 | 100 115 240 130 122 Overloaded Moves . | . . . . . Propulsion Burnouts . | . . . . . Robots Hopped . | . . . . . Potential Cave-ins . | . . . . . Cave-ins Triggered . | . . . . . Exploration Rate (%) 32 | 3 46 52 60 2 Regions Visited 4 Branch Regions 1 Pre-discovered Areas . | . . . . . Known Exits Taken . | . . . . . Unknown Exits Taken 4 | 1 1 1 1 . Scrap Searched 6 | . . 6 . . Spaces Dug 16 | . 1 5 7 3 Terrain Destroyed 51 | . 3 35 10 3 Melee 9 | . . . 6 3 Projectile 17 | . 3 10 4 . AOE 25 | . . 25 . . Terrain Rammed . | . . . . . Walls Destroyed . | . . . . . Machines Disabled . | . . . . . Actions | -11 -10 -10 -8 -7 --------- Run | Yrd Mat Sub Mat Fac Total 5165 | 66 415 3190 1366 128 Wait 1773 | 2 149 1504 118 . Move 2976 | 51 241 1529 1043 112 Hop . | . . . . . Pick Up 72 | 6 5 15 44 2 Fast Attach 10 | 4 1 1 4 . Attach 30 | 2 1 5 20 2 Detach 3 | . 1 . 2 . Swap 48 | . 3 22 21 2 Drop 37 | . 1 8 28 . Fire 175 | 1 13 103 58 . Melee 39 | . . 3 26 10 Ram . | . . . . . Kick . | . . . . . Crush . | . . . . . Escape Stasis . | . . . . . Rewire . | . . . . . Trap 2 | . . . 2 . Miscellaneous . | . . . . . Route ------- -11/Scrapyard -10/Materials (discovered 2 exits: [*Min] / *Sub) -10/Subcaves (discovered 2 exits: *Mat / Rec) -8/Materials -7/Factory History --------- Turn | Location | Event 30 | -11/Scrapyard | Discovered new exit (range 15) 71 | -11/Scrapyard | Entered Materials 142 | -10/Materials | Discovered new exit (range 13) 217 | -10/Materials | Central database locked down 318 | -10/Materials | Build established: Mutant 539 | -10/Materials | Discovered new exit (range 6) 545 | -10/Materials | Entered Subcaves 1108 | -10/Subcaves | Shifting Twisted Machinery released Barrage Gun 1148 | -10/Subcaves | Shifting Twisted Machinery released Sub. Power Source 1432 | -10/Subcaves | Shifting Twisted Machinery released Battle Rifle 1732 | -10/Subcaves | Disturbed a concealed Subdweller 1761 | -10/Subcaves | Disturbed a concealed Subdweller 1938 | -10/Subcaves | Visited Clippyterm 1945 | -10/Subcaves | Identified exit to Recycling 1945 | -10/Subcaves | Learned Factory garrison access intel 1988 | -10/Subcaves | A swath of the cavern ceiling suddenly collapsed 3092 | -10/Subcaves | Core integrity fell below 50% 4489 | -10/Subcaves | Core integrity fell below 20% 4531 | -10/Subcaves | Lost 4 parts (1n1u2w) 4671 | -10/Subcaves | Discovered new exit (range 16) 4691 | -10/Subcaves | Entered Materials 4691 | -8/Materials | Evolved 4 slots: Propulsion x2, Utility x2 5142 | -8/Materials | Lost 3 parts (1n1u1w) 5350 | -8/Materials | Core integrity fell below 50% 5386 | -8/Materials | Lost 7 parts (1p4n1u1w) 5695 | -8/Materials | Central database locked down 5955 | -8/Materials | Discovered new exit (range 15) 5969 | -8/Materials | Entered Factory 5969 | -7/Factory | Evolved 2 slots: Power x1, Utility x1 5970 | -7/Factory | Loaded intel: 4 garrison access locations 6138 | -7/Factory | Self-destructed Last Messages --------------- 05987_ Acquired Core Analyzer. 05996_ Connecting with Terminal... 05996_ Current location identified: Factory 06051_ U-05 Engineer builds a Wall. 06085_ Acquired Prototype Flight Unit. 06085_ Identified Imp. Cesium-ion Thruster. 06087_ Acquired Titanium Leg. 06090_ Acquired Imp. Cesium-ion Thruster. 06124_ Triggered Ambush Trap. 06124_ L-41 Fighter emerges from a hatch in the floor. 06124_ S-27 Virus emerges from a hatch in the floor. 06124_ G-47 Trooper emerges from a hatch in the floor. 06124_ ALERT: All DSF locations entering lockdown mode. 06124_ Airjet+ destroyed. 06125_ K-01 Serf cleans the Construction Platform. 06126_ Imp. Sensor Array destroyed. 06131_ Propulsion Shielding destroyed. 06132_ U-05 Engineer lays Concrete. 06135_ Lgt. Deuterium Engine destroyed. 06135_ Airjet+ destroyed. Map ----- +----------------------------------------------------+ | ####??????? #????????????????????????????????? | | ######## #????????????????????????????????? | | " # #????????????????????????????????? | | "" # #????????????????????????????????? | | "" # +????????????????????????????????? | | + #????????????????????????????????? | | # #????????????????????????????????? | | # #????????????????????????????????? | | # #????????????????????????????????? | | !######## #????????????????????????????????? | | ########### ##+#?????????????????????????????? | | # #????##??#????????????????????? | | """ """ # #???? ? ????????????????????? | | """ """ # #???# ?"""???????????????????? | | """ """ # #???# """"???????????????????? | | # ##### """""??????????????????? | | """ """ # # """"???????????????????? | | """ """ + # ????????????????????? | | """ """ # + """????????????????????? | | # # """????????????????????? | | + # ""?????????????????????? | | ############ # ""?????????????????????? | | #??????????# # ??????????????????????? | | ###########??????????# # ??????????????????????? | | ?????????????????????# ##/#??????????????????????? | | ?????????????????????# @#??????????????????????? | | ?????????????????????# gsl ?????????????????? | | ?????????????????????############????????????????? | | ?????????????????????????????????????????????????? | | ?????????????????????????????????????????????????? | | ?????????????????????????????????????????????????? | | ?????????????????????????????????????????????????? | | ?????????????????????????????????????????????????? | | | | | | | | | | | | | | | | | | | | | | | | | | | | | | | | | | | +----------------------------------------------------+ Best States ------------- Heat Dissipation 45 Coolant Potential 50 Energy Generation 23 Energy Capacity 280 Matter Stores 450 Matter Capacity 450 Sight Range 16 Robot Scan Range 15 Terrain Scan Range 16 Terrain Scan Density 85 Additional Mass Support 9 Armor Coverage 800 Propulsion Shielding 33 Evasion (%) 55 Recoil Reduction 2 Item Schematics ----------------- Imp. Datajack | -8/Materials | Scanalyzed Nuclear Core | -8/Materials | Scanalyzed Robot Schematics ------------------ None Fabricated ------------ Nothing Repaired ---------- Nothing Studied --------- Airjet | -8/Materials | Hacked Alien Tech Used ----------------- None Achievements -------------- Item+ Throw Away The Key Challenges ------------ None Game ------ Seed TeleporterHeatReconstructor Manual? 0 Play Time 00:56:11 Cumulative 383.5 hours Start 2026.06.27 @ 20:39:09 End 2026.06.27 @ 21:34:17 Sessions 1 Manual Loads 0 Difficulty Rogue Special Mode None Game No. 287 Rogue 287 Adventurer 0 Explorer 0 Win Type - Total 7 Types 3/0/3/1/0/0/0/0/0/0 Lore% 75 Gallery% 71 Achievement% 38 Wizard Run 0 Options --------- Layout 2 ASCII 0 Keyboard 1 Movement Vi Keybinds 0 Fullscreen 2 Font 32/SmallcapsGlow Map View 77x44 Zoom Use 0% Tactical HUD 1 Map Filters NONE Filters NONE Steam 1 RUN: fe5ba412-6a94-407a-bd4b-2de0fcda0d31